Workbook

Sheet Pasiūlymas
A2: PIRKIMO SĄLYGŲ PRIEDAS "PASIŪLYMŲ FORMA"
A4: CHIRURGINIAI TINKLELIAI, SIŪLAI IR SIUVIMO PRIETAISAI
A6: Kam: | B6: VšĮ LSMU Kauno ligoninė
A8: Data: | B8: 2022 11 30
A9: Nr.:
A10: Vieta: | B10: Vilnius
A12: Tiekėjo pavadinimas / Ūkio subjektų grupės nariai: | C12: Baros LT
A13: Tiekėjo kodas (-ai): | C13: 305266958
A14: Tiekėjo adresas (-ai): | C14: Vilkpėdės 22, Vilnius LT-03151
A15: Tiekėjo PVM mokėtojo kodas(-ai): | C15: LT100012693017
A16: Tiekėjo / Ūkio subjektų grupės atsakingo partnerio sąskaitos numeris, banko pavadinimas ir banko kodas (-ai): | C16: LT567044060008311796, SEB Bankas
A17: Asmens atsakingo už pasiūlymą vardas, pavardė: | C17: Vytautas Petrašiūnas
A18: Asmens atsakingo už pasiūlymą telefono numeris, el. pašto adresas: | C18: 37067139616, info@baros.lt
A19: Tiekėjo / Ūkio subjektų grupės, laimėjimo atveju, pasirašančio sutartį asmens vardas, pavardė, pareigos: | C19: Vytautas Petrašiūnas, direktorius
A20: Tiekėjo / Ūkio subjektų grupės, laimėjimo atveju, už sutarties vykdymą atsakingo asmens vardas, pavardė, telefono numeris, elektroninio pašto adresas: | C20: Vytautas Petrašiūnas, 37067139616, info@baros.lt
A21: (1) Tiekėjo / Ūkio subjektų grupės narių, (2) ūkio subjektų, kurių pajėgumais remiamasi, ir (3) jei pašalinimo pagrindai taikomi visiems subtiekėjams - subtiekėjų, kolegialaus priežiūros organo (Stebėtojų tarybos) ir (ar) kolegialaus valdymo organo (Valdybos) narių sąrašas (jei sudaryta) ir (ar) asmuo, kuriam suteikti VPĮ 46 str. 2 d. 2 p. numatyti įgaliojimai | C21: Valdyba nesudaryta, numatyti įgaliojimai suteikti direktoriui Vytautui Petrašiūnui | G21: =IF((SUMPRODUCT(--(C21=""))>0), "Privaloma užpildyti, kai taikomi pašalinimo pagrindai", "") -> 
A23: Tiekėjo patvirtinimai:
A24: 1. Šiuo pasiūlymu pažymime, kad sutinkame su visomi pirkimo sąlygomis, nustatytomis:
A25: 1.1. viešojo pirkimo dokumentuose
A26: 1.2. kituose pirkimo dokumentuose (jų paaiškinimuose, papildymuose).
A27: 2. Patvirtiname, kad informacija ir duomenys, pateikti pasiūlyme, yra teisingi ir apima viską, ko reikia tinkamam sutarties įvykdymui
A28: 3. Patvirtiname, kad jei pasiūlyme nenurodyti kolegialaus priežiūros/valdymo organų nariai, šie organai juridiniuose asmenyse nėra sudaryti (taikoma, kai pirkimo dokumentuose nustatyti pašalinimo pagrindai).
A29: 4. Pasiūlymas galioja iki termino, nustatyto pirkimo dokumentuose.
A30: 5. Tais atvejais, kai pagal galiojančius teisės aktus tiekėjui nereikia mokėti PVM, jis nurodo priežastis, dėl kurių PVM nemoka:
A34: 7. DALIS | B34: TINKLELIAI IŠVARŽŲ PLASTIKAI
A36: Tiekėjo pasiūlymas:
A37: Nr. | B37: Pavadinimas | C37: Kiekis | D37: Mato vienetas | E37: Įkainis be PVM, Eur | F37: Suma be PVM, Eur | G37: Siūlomos prekės, pavadinimas, gamintojas, kodas | H37: Tiekėjo siūlomi parametrai ir parametrą pagrindžiantys dokumentai
A38: 7. | B38: Tinkleliai išvaržų plastikai
A39: 7.1. | B39: Tinkleliai išvaržų plastikai | C39: 35 | D39: vnt | E39: 56 | F39: =IF(ISBLANK(E39),"", PRODUCT(C39,E39)) -> 1960 | G39: BioMesh P1, Cousin surgery, Prancūzija, FBIOP13DSR, FBIOP13D SL
A40: 7.1.1. | B40: Dydis 15 cm x 10 cm ( ± 1 cm) | H40: Dydis 14 cm x 10,5 cm (Katalogas G, 2psl.)
A41: 7.1.2. | B41: Sterilus tinklelis | H41: Sterilus tinklelis (Katalogas H, 1psl.)
A42: 7.1.3. | B42: Skirtas išvaržų operacijoms | H42: Skirtas išvaržų operacijoms (Katalogas G, 2psl.)
A43: 7.1.4. | B43: Pagamintas iš monofilamentinio polivinilidenflorido arba monofilamentinio polipropileno | H43: Pagamintas iš monofilamentinio polipropileno (Katalogas H, 2 psl.)
A44: 7.1.5. | B44: Tinklelis išgaubtas, Išlaiko formą | H44: Tinklelis išgaubtas, Išlaiko formą (Katalogas G 2psl.)
A45: 7.1.6. | B45: Su žaliomis orientavimosi linijomis arba turintis kitus markerius | H45: Turintis mėlyną markerį (Katalogas G, 1-2 psl.)
A46: 7.1.7. | B46: Skirtingų pusių (dešinė arba kairė) arba tinkantis abiems anatominėms pusėms | H46: Skirtingų pusių (dešinė arba kairė), (Katalogas G, 2psl.)
A47: 7.1.8. | B47: Tinkleliai privalo turėti sterilumo kontrolės sistemą t. y.kontrolinius lipdukus su pakuotės sterilumo ir gamybos duomenimis | H47: Visi gamintojo Cousin surgery Biomesh P1 tinkleliai turi sterilumo kontrolės sistemą t. y.kontrolinius lipdukus su pakuotės sterilumo ir gamybos duomenimis (Katalogas I, 1psl.)
E48: Suma be PVM | F48: =IF((COUNT(C39:C47)<>COUNT(F39:F47)),"", SUM(F39:F47)) -> 1960 | G48: =IF((COUNT(C39:C47)<>COUNT(F39:F47)),"Neužpildytos visų objektų kainos", "") -> 
E49: PVM suma | F49: =F48*0.05 -> 98
E50: Suma su PVM | F50: =IF(ISBLANK(F49), "", SUM(F48:F49)) -> 2058
A53: 32. DALIS | B53: TINKLELIS IŠVARŽOS PLASTIKAI
A55: Tiekėjo pasiūlymas:
A56: Nr. | B56: Pavadinimas | C56: Kiekis | D56: Mato vienetas | E56: Įkainis be PVM, Eur | F56: Suma be PVM, Eur | G56: Siūlomos prekės, pavadinimas, gamintojas, kodas | H56: Tiekėjo siūlomi parametrai ir parametrą pagrindžiantys dokumentai
A57: 32. | B57: Tinklelis išvaržos plastikai
A58: 32.1. | B58: Tinklelis išvaržos plastikai | C58: 200 | D58: vnt. | E58: 56 | F58: =IF(ISBLANK(E58),"", PRODUCT(C58,E58)) -> 11200 | G58: 3D Anatomical mesh, Cousin Surgery, Prancūzija, FBIOP13DSR, FBIOP13DSL
A59: 32.1.1. | B59: Išgaubtas 10 x 15cm (± 1cm) | H59: Išgaubtas 10,5 x 14cm (Katalogas G, 2 psl.)
A60: 32.1.2. | B60: Išgaubtą formą išlaikantis 3D tinklelis skirtas laparoskopinėms kirkšnies išvaržos operacijoms | H60: Išgaubtą formą išlaikantis 3D tinklelis, skirtas laparoskopinėms kirkšnies išvaržos operacijoms (Katalogas G, 1-2 psl)
A61: 32.1.3. | B61: Pagamintas iš monofilamentinio polivinildenfluorido arba monofilamentinio polipropileno | H61: Pagamintas iš monofilamentinio polipropileno (Katalogas G, 2 psl)
A62: 32.1.4. | B62: Turi spalvines orientavimo linijas arba kitus markerius, tinka abiems anatominėms pusėms arba skirtingų pusių (dešinė, kairė) | H62: Turi mėlynos spalvos markerius, skirtingų pusių (dešinė, kairė) (Katalogas G, 2 psl)
E63: Suma be PVM | F63: =IF((COUNT(C58:C62)<>COUNT(F58:F62)),"", SUM(F58:F62)) -> 11200 | G63: =IF((COUNT(C58:C62)<>COUNT(F58:F62)),"Neužpildytos visų objektų kainos", "") -> 
E64: PVM suma | F64: =F63*0.05 -> 560
E65: Suma su PVM | F65: =IF(ISBLANK(F64), "", SUM(F63:F64)) -> 11760
A69: 39. DALIS | B69: LIGAVIMO IR SIUVIMO PRIEMONĖS BEI INSTRUMENTAI LAPARASKOPINEI IR ATVIRAI CHIRURGIJAI
A71: Tiekėjo pasiūlymas:
A72: Nr. | B72: Pavadinimas | C72: Kiekis | D72: Mato vienetas | E72: Įkainis be PVM, Eur | F72: Suma be PVM, Eur | G72: Siūlomos prekės, pavadinimas, gamintojas, kodas | H72: Tiekėjo siūlomi parametrai ir parametrą pagrindžiantys dokumentai
A73: 39. | B73: Ligavimo ir siuvimo priemonės bei instrumentai laparaskopinei ir atvirai chirurgijai
A74: 39.1. | B74: Laparaskopinio siuvimo aparato rankena | C74: 8 | D74: vnt | E74: 155 | F74: =IF(ISBLANK(E74),"", PRODUCT(C74,E74)) -> 1240 | G74: EasyEndo, Ezisurg, Kinija, U12M
A75: 39.1.1. | B75: Laparaskopinio siuvimo aparato rankena | H75: Laparaskopinio siuvimo aparato rankena, (Katalogas A, 1 psl)
A76: 39.1.2. | B76: Vienkartinė | H76: Vienkartinė, (Katalogas A, 1 psl., Katalogas B, 1 psl)
A77: 39.1.3. | B77: Darbinis ilgis 16 cm (±0,5 cm) | H77: Darbinis ilgis 16 cm, (Katalogas A, 1 psl)
A78: 39.1.4. | B78: Rankenos pagalba galima atlikti ne mažiau 25 kasečių šūvius | H78: Rankenos pagalba galima atlikti 25 kasečių šūvius, (Katalogas B, 10 psl)
A79: 39.1.5. | B79: Rankeną galima uždaryti ir atidaryti pakartotinai neiššovus kasetės | H79: Rankeną galima uždaryti ir atidaryti pakartotinai neiššovus kasetės, (Katalogas B, 9 psl)
A80: 39.1.6. | B80: Įdiegtas apsaugos mechanizmas prieš atsitiktinį iššovimą | H80: Įdiegtas apsaugos mechanizmas prieš atsitiktinį iššovimą, (Katalogas B, 9 psl)
A81: 39.1.7. | B81: Rankenos atžvilgiu darbinė instrumento dalis rotuojama 360 laipsnių | H81: Rankenos atžvilgiu darbinė instrumento dalis rotuojama 360 laipsnių, (Katalogas B, 9 psl)
A82: 39.1.8. | B82: Artikuliuojama ne mažiau 45 laipsnių į abi puses | H82: Artikuliuojama 60 laipsnių į abi puses, (Katalogas A, 2 psl)
A83: 39.1.9. | B83: Galimybė dirbti su ne mažiau kaip 20 skirtingų tipų kasečių (tiesių ir besilankstančių) | H83: Galimybė dirbti su ne mažiau kaip 20 skirtingų tipų kasečių (tiesių ir besilankstančių), (Katalogas A, 1 psl)
E84: Suma be PVM | F84: =IF((COUNT(C74:C83)<>COUNT(F74:F83)),"", SUM(F74:F83)) -> 1240 | G84: =IF((COUNT(C74:C83)<>COUNT(F74:F83)),"Neužpildytos visų objektų kainos", "") -> 
E85: PVM suma | F85: =F84*0.05 -> 62
E86: Suma su PVM | F86: =IF(ISBLANK(F85), "", SUM(F84:F85)) -> 1302
A90: 40. DALIS | B90: KASETĖS LAPARASKOPINIO SIUVIMO APARATUI
A92: Tiekėjo pasiūlymas:
A93: Nr. | B93: Pavadinimas | C93: Kiekis | D93: Mato vienetas | E93: Įkainis be PVM, Eur | F93: Suma be PVM, Eur | G93: Siūlomos prekės, pavadinimas, gamintojas, kodas | H93: Tiekėjo siūlomi parametrai ir parametrą pagrindžiantys dokumentai
A94: 40. | B94: Kasetės laparaskopinio siuvimo aparatui
A95: 40.1. | B95: Kasetės laparaskopinio siuvimo aparatui | C95: 12 | D95: vnt | E95: 110 | F95: =IF(ISBLANK(E95),"", PRODUCT(C95,E95)) -> 1320 | G95: EasyEndo, Ezisurg, Kinija, L45B, L60B, R45B, R60B
A96: 40.1.1. | B96: Siūlės ilgis 45 mm (±0,5 mm) arba 60 mm (±0,5 mm) | H96: Siūlės ilgis 45 mm ir 60 mm, (Katalogas C, 2 psl)
A97: 40.1.2. | B97: 6 kabučių eilės | H97: 6 kabučių eilės, Katalogas C, 2 psl
A98: 40.1.3. | B98: Kabutės pagamintos iš titano | H98: Kabutės pagamintos iš titano, (Katalogas B, 10 psl)
A99: 40.1.4. | B99: Uždarytų kabučių aukštis 1,5 mm (±0,1 mm) | H99: Uždarytų kabučių aukštis 1,5 mm, (Katalogas C, 2 psl)
A100: 40.1.5. | B100: Pjovimo peilis yra įmontuotas kasetėje | H100: Pjovimo peilis yra įmontuotas kasetėje, (Katalogas B 2 ir 7 psl)
A101: 40.2. | B101: Kasetės laparaskopinio siuvimo aparatui | C101: 12 | D101: vnt | E101: 110 | F101: =IF(ISBLANK(E101),"", PRODUCT(C101,E101)) -> 1320 | G101: EasyEndo, Ezisurg, Kinija, L45W, L60W, R45W, R60W
A102: 40.2.1. | B102: Siūlės ilgis 45 mm (±0,5 mm) ir 60 mm (±0,5 mm) | H102: Siūlės ilgis 45 mm ir 60 mm, (Katalogas C, 2 psl)
A103: 40.2.2. | B103: Ne daugiau 6 kabučių eilės. | H103: 6 kabučių eilės, Katalogas C, 2 psl
A104: 40.2.3. | B104: Kabutės pagamintos iš titano | H104: Kabutės pagamintos iš titano, (Katalogas B, 10 psl)
A105: 40.2.4. | B105: Uždarytų kabučių aukštis 1 mm (±0,1 mm) | H105: Uždarytų kabučių aukštis 1 mm, (Katalogas C, 2 psl)
A106: 40.2.5. | B106: Pjovimo peilis yra įmontuotas kasetėje | H106: Pjovimo peilis yra įmontuotas kasetėje, (Katalogas B 2 ir 7 psl)
A107: 40.3. | B107: Kasetės laparaskopinio siuvimo aparatui | C107: 12 | D107: vnt | E107: 110 | F107: =IF(ISBLANK(E107),"", PRODUCT(C107,E107)) -> 1320 | G107: EasyEndo, Ezisurg, Kinija, L45G, L60G, R45G, R60G
A108: 40.3.1. | B108: Siūlės ilgis 45 mm (±0,5 mm) ir 60 mm (±0,5 mm) | H108: Siūlės ilgis 45 mm ir 60 mm, (Katalogas C, 2 psl)
A109: 40.3.2. | B109: Ne mažiau 6 kabučių eilės | H109: 6 kabučių eilės, (Katalogas C, 2 psl)
A110: 40.3.3. | B110: Kabutės pagamintos iš titano | H110: Kabutės pagamintos iš titano, )Katalogas B, 10 psl)
A111: 40.3.4. | B111: Uždarytų kabučių aukštis 2 mm (±1 mm) | H111: Uždarytų kabučių aukštis 2 mm, (Katalogas C, 2 psl)
A112: 40.3.5. | B112: Pjovimo peilis yra įmontuotas kasetėje | H112: Pjovimo peilis yra įmontuotas kasetėje, (Katalogas B 2 ir 7 psl)
A113: 40.4. | B113: Kasetės laparaskopinio siuvimo aparatui | C113: 12 | D113: vnt | E113: 110 | F113: =IF(ISBLANK(E113),"", PRODUCT(C113,E113)) -> 1320 | G113: EasyEndo, Ezisurg, Kinija, R45B, R45C, R45G, R60B, R60C, R60G, R60T
A114: 40.4.1. | B114: Siūlės ilgis 45 mm (±0,5 mm) ir 60 mm (±0,5 mm) | H114: Siūlės ilgis 45 mm ir 60 mm, (Katalogas C, 2 psl)
A115: 40.4.2. | B115: Kabutės išdėstytos trim eilėm kiekvienoje pjovimo ribos pusėje ir skirtingų aukščių | H115: Kabutės išdėstytos trim eilėm kiekvienoje pjovimo ribos pusėje (Katalogas A, 2 psl.) ir skirtingų aukščių (Katalogas C, 2 psl.)
A116: 40.4.3. | B116: Atidarytų kabučių aukštis 3 mm (±0,5 mm), 3,5 mm (±0,5 mm), 4 mm (±0,5 mm) | H116: Atidarytų kabučių aukštis: 3.5 mm, 3.8 mm, 4.1 mm, 4.4 mm, (Katalogas C, 2 psl)
A117: 40.4.4. | B117: Ne mažiau 45 laipsniai | H117: 60 laipsnių, (Katalogas A, 2 psl)
A118: 40.4.5. | B118: Priekalas fiksuotas arba nuimamas | H118: Priekalas fiksuotas arba nuimamas, (Katalogas B, 1 psl)
E119: Suma be PVM | F119: =IF((COUNT(C95:C118)<>COUNT(F95:F118)),"", SUM(F95:F118)) -> 5280 | G119: =IF((COUNT(C95:C118)<>COUNT(F95:F118)),"Neužpildytos visų objektų kainos", "") -> 
E120: PVM suma | F120: =F119*0.05 -> 264
E121: Suma su PVM | F121: =IF(ISBLANK(F120), "", SUM(F119:F120)) -> 5544

Sheet Subtiekėjai ir priedai
A2: Ūkio subjektai (įskaitant kvazisubtiekėjus - fiziniai asmenys, kuriuos ketinama įdarbinti pirkimo laimėjimo atveju), kurių pajėgumais tiekėjas remiasi, kad atitiktų keliamus kvalifikacijos reikalavimus:
A5: Pavadinimas* | C5: Kodas, adresas | F5: Perduodami įsipareigojimai | I5: Perduodamų įsipareigojimų dalis nuo visos pirkimo sutarties (Eur arba %) | K5: Kval. Reikalavimo Nr.
A9: Subtiekėjams / subteikėjams / subrangovams numatomos perduoti veiklos (privaloma nurodyti) ir šių ūkio subjektų pavadinimai (jei žinomi):
A11: Pavadinimas | C11: Kodas, adresas | F11: Perduodama veikla* | I11: Perduodamos veiklos dalis nuo visos pirkimo sutarties (Eur arba %)
A18: Kartu su pasiūlymu pateikiami šie dokumentai:
A20: Nr. | B20: Dokumento pavadinimas | H20: Dokumentas yra konfidencialus? Taip/Ne
A21: 1 | B21: Jungtinės veiklos kopija (jei taikoma) | H21: Netaikoma
A22: 2 | B22: Europos bendrasis viešųjų pirkimų dokumentas | H22: Taip
A23: 3 | B23: Subtiekimo sutartis, ketinimų protokolas, preliminarios sutartys ar kiti dokumentai, patvirtinantys, kad laimėjus pirkimą tiekėjui bus prieinami kitų ūkio subjektų ištekliai (jei pasitelkiami kvalifikacijos atitikimui) | H23: Netaikoma
A24: 4 | B24: Pasiūlymo atitikimą pirkimo sąlygų techninei specifikacijai pagrindžiantys dokumentai | H24: Ne
A25: 5 | B25: Gamintojo Cousin surgery CE sertifikatas | H25: Taip
A26: 6 | B26: Gamintojo Ezisurg CE sertifikatas | H26: Taip
A27: 7 | B27: Tiekėjo deklaracija | H27: Ne
A30: Pasiūlyme nurodyta Prekės kaina, išskyrus jos sudedamąsias dalis, subtiekėjai, taip pat kita informacija, kuri teisės aktų nustatyta tvarka turi būti skelbiama arba kitokiu būdu viešai prieinama visuomenei, nėra laikoma konfidencialia informacija. Konfidencialią informaciją sudaro, visų pirma, komercinė (gamybinė) paslaptis ir konfidencialieji pasiūlymų aspektai. Informacija, kurią viešai skelbti įpareigoja Lietuvos Respublikos įstatymai, negali būti tiekėjo nurodoma kaip konfidenciali, todėl, tiekėjui nurodžius tokią informaciją kaip konfidencialią, perkančioji organizacija turi teisę ją skelbti. Jei tiekėjas nenurodo konfidencialios informacijos, laikoma, kad konfidencialios informacijos tiekėjo pasiūlyme nėra. Vadovaujantis Informacijos viešinimo Centrinėje viešųjų pirkimų informacinėje sistemoje tvarkos aprašu, patvirtintu Viešųjų pirkimų tarnybos direktoriaus 2017 m. birželio 19 d. įsakymu Nr. 1S-91 „Dėl Informacijos viešinimo Centrinėje viešųjų pirkimų informacinėje sistemoje tvarkos aprašo patvirtinimo“, perkančioji organizacija laimėjusio dalyvio pasiūlymą, išskyrus informaciją, kurią tiekėjas nurodė kaip konfidencialią, paskelbs CVP IS.
A33: Tiekėjo arba jo įgalioto asmens pareigų pavadinimas: | E33: Direktorius
A35: Pasirašančio asmens vardas ir pavardė: | E35: Vytautas Petrašiūnas
A82: 6890-1 2022-10-26 09:24:43
